Cogmind - Beta 16 @@@ ROGUE MODE // 2025.12.18 @ 03:48:21 Player: Lauriboy Result: Destroyed by BO-C9V(R) with Subdweller Beam Cannon Performance ------------- Evolutions (0) 0 Regions Visited (2) 400 Robots Destroyed (17) 85 Value Destroyed (405) 405 Prototype IDs (0) 0 Alien Tech Used (0) 0 Bonus (0) 0 TOTAL SCORE: 890 Bonus ------- None Cogmind --------- Core Integrity 0/250 Matter 290/300 Energy 125/125 System Corruption 0% Temperature Cool (9) Movement Treading (160) Location -10/Subcaves Parts ------- > --- POWER (1) -------- Light Ion Engine > --- PROPULSION (2) --- Light Treads Light Treads > --- UTILITY (2) ------ Large Storage Unit Signal Interpreter > --- WEAPON (2) ------- Particle Gun Mace > --- INVENTORY (15) --- Ion Engine Light Treads Light Treads Light Treads Wheel Makeshift Flight Unit Improved Heat Sink Small Storage Unit Weapon Shielding Scrap Shield Small Laser Particle Gun Autogun Plasma Cutter Peak State ------------ > --- POWER ------------ Light Ion Engine > --- PROPULSION ------- Aluminum Leg Aluminum Leg > --- UTILITY ---------- Large Storage Unit Signal Interpreter > --- WEAPON ----------- Autogun Autogun > --- INVENTORY -------- Ion Engine Light Treads Light Treads Improved Aluminum Leg Improved Aluminum Leg Improved Aluminum Leg Improved Aluminum Leg Wheel Compact Wheel Improved Heat Sink Small Storage Unit Small Laser Light Assault Rifle Light Assault Rifle Plasma Cutter [Rating: 11] Favorites ----------- Power Light Ion Engine Engine Light Ion Engine Propulsion Light Treads Treads Light Treads Leg Aluminum Leg Utility Large Storage Unit Storage Large Storage Unit Processor Signal Interpreter Weapon Autogun Energy Gun Particle Gun Ballistic Gun Autogun Impact Weapon Mace Build | -11 -10 -10 ------- Run | Yrd Mat Sub Slots Evolved . | . . . Power . | . . . Propulsion . | . . . Utility . | . . . Weapon . | . . . Parts Attached 17 | 6 8 3 Power 1 | 1 . . Engine 1 | 1 . . Core . | . . . Reactor . | . . . Propulsion 6 | 2 3 1 Treads 3 | . 2 1 Leg 3 | 2 1 . Wheel . | . . . Hover . | . . . Flight . | . . . Utility 4 | 1 3 . Device . | . . . Storage 3 | 1 2 . Processor 1 | . 1 . Hackware . | . . . Protection . | . . . Artifact . | . . . Weapon 6 | 2 2 2 Energy Gun 1 | . . 1 Energy Cannon . | . . . Ballistic Gun 4 | 2 2 . Ballistic Cannon . | . . . Launcher . | . . . Special Weapon . | . . . Impact Weapon 1 | . . 1 Slashing Weapon . | . . . Piercing Weapon . | . . . Special Melee Weapon . | . . . Unidentified Prototypes . | . . . Parts Lost 2 | . 2 . Power . | . . . Propulsion 1 | . 1 . Utility . | . . . Weapon 1 | . 1 . Highest Loss Streak 2 | . 2 . To Critical Strikes . | . . . Average Backups 13 | 2 14 14 Power . | . 1 1 Propulsion 5 | 1 7 5 Utility 3 | . 2 3 Weapon 2 | . 3 3 Tool/Special . | . . . Unused Backups 17 | . 4 13 Power 1 | . . 1 Propulsion 10 | . 4 6 Utility 3 | . . 3 Weapon 2 | . . 2 Tool/Special 1 | . . 1 Average Slot Usage (%) 97 | . 95 99 Engine 14 | . 14 14 Treads 20 | . 10 27 Leg 7 | . 16 . Storage 14 | . 14 14 Processor 12 | . 10 14 Energy Gun 7 | . . 13 Ballistic Gun 19 | . 27 12 Peak Build Rating 11 | 6 11 11 Average Rating 10 | 5 10 10 On Entrance 4 | . 6 8 Avg Prop Armor Cover (%) . | . . . Naked Turns . | . . . Heaviest Build 29 | 10 29 29 Greatest Support 40 | 20 40 40 Greatest Overweight (x) 2 | 2 1 . Average Overweight (x) . | . . . Largest Inventory Capacity 15 | 8 15 15 Average Capacity 14 | 7 14 15 Most Carried 15 | 6 15 15 Average Carried 14 | 3 14 14 Final Capacity 15 | 8 15 15 Final Carried 15 | 6 15 15 Class Distribution -------------------- 100% | Mutant Dominant Class ---------------- Mutant | -10/Materials Mutant | -10/Subcaves Resources | -11 -10 -10 ----------- Run | Yrd Mat Sub Matter Collected 676 | 260 375 41 Remotely . | . . . Salvage Created 462 | . 462 . Parts 34 | . 34 . Haulers Intercepted . | . . . Recyclers Shooed . | . . . Parts Field Recycled . | . . . Retrieved Matter . | . . . Parts Self-Destructed 1 | . . 1 Prevented . | . . . Parts Restored . | . . . Kills | -11 -10 -10 ------- Run | Yrd Mat Sub Combat Hostiles Destroyed 14 | . 14 . Guns 14 | . 14 . Classes Destroyed 5 | . 5 . Builder 1 | . 1 . Operator 1 | . 1 . Watcher 1 | . 1 . Swarmer 6 | . 6 . Grunt 8 | . 8 . Best Kill Streak 5 | . 5 . Combat Bots Only 4 | . 4 . Max Kills in Single Turn 1 | . 1 . Gunslinging . | . . . Exploded . | . . . Melee . | . . . Uniques/NPCs Destroyed . | . . . Combat | -11 -10 -10 -------- Run | Yrd Mat Sub Hostile Shots Fired 60 | . 58 2 Missed 12 | . 12 . Hits 48 | . 46 2 Projectile 48 | . 46 2 AOE 2 | . 2 . Critical Strikes 2 | . 2 . Damage Taken 794 | . 749 45 Core 263 | . 218 45 Absorbed by Shields . | . . . Core Remaining (%) 100 | 100 . . Volleys Fired 41 | . 38 3 Largest 2 | . 2 2 Hottest 88 | . 46 88 Shots Fired 82 | . 76 6 Gun 82 | . 76 6 Cannon . | . . . Launcher . | . . . Special . | . . . Kinetic 79 | . 76 3 Thermal 3 | . . 3 Explosive . | . . . Electromagnetic . | . . . Robot Hit Streak 6 | . 6 . Robot Miss Streak 4 | . 4 . Penetration Max . | . . . Secondary Targets 1 | . 1 . Max Gunslinging Chain 1 | . 1 . Shots Hit Robots 43 | . 43 . Core Hits 23 | . 23 . Critical Kills . | . . . Critical Parts Destroyed . | . . . Critical Strikes . | . . . Melee Attacks 7 | . . 7 Impact 7 | . . 7 Slashing . | . . . Piercing . | . . . Sneak Attacks . | . . . Combat Hostiles . | . . . Follow-up Attacks . | . . . Damage Inflicted 731 | . 731 . Guns 694 | . 694 . Cannons . | . . . Explosions 37 | . 37 . Melee . | . . . Ramming . | . . . Kinetic 694 | . 694 . Thermal 37 | . 37 . Explosive . | . . . Electromagnetic . | . . . Impact . | . . . Slashing . | . . . Piercing . | . . . Highest Corruption . | . . . Average Corruption . | . . . Corruption Purged . | . . . Corruption Blocked . | . . . Overload Shots . | . . . Overflow Damage 34 | . 34 . Projectiles . | . . . Explosions 34 | . 34 . Melee . | . . . Knockbacks . | . . . Impact . | . . . Kinetic . | . . . Secondary . | . . . Self-Inflicted Damage 85 | . 85 . Shots 1 | . 1 . Rammed . | . . . Targets Rammed . | . . . Kicked . | . . . Crushed . | . . . Highest Temperature 68 | . 68 8 Average Temperature 17 | . 18 6 Received Heat Transfer 249 | . 234 15 Siege Activations . | . . . Martial Activations . | . . . Shielding Activations . | . . . Robots Disrupted . | . . . Combat Hostiles . | . . . Robots Corrupted . | . . . Combat Hostiles . | . . . Parts Fried . | . . . Impact Corruptions . | . . . Robots Melted . | . . . Combat Hostiles . | . . . Parts Melted . | . . . Heat Transferred 50 | . 50 . Parts Sabotaged . | . . . Parts Stolen . | . . . Parts Stripped . | . . . Power Chain Reactions . | . . . Alert | -11 -10 -10 ------- Run | Yrd Mat Sub Maximum Alert Level 1 | . 1 . Low Security (%) 84 | 100 82 . Level 1 15 | . 17 . Level 2 . | . . . Level 3 . | . . . Level 4 . | . . . Level 5 . | . . . High Security . | . . . Max Security . | . . . Peak Influence 278 | . 278 . Initial . | . . . Average 59 | . 63 . Influence Increases 466 | . 466 . Destroy 0b10 Robot/C 280 | . 280 . Destroy 0b10 Robot/NC 15 | . 15 . Destroy Leader 62 | . 62 . Disable Machine 15 | . 15 . Destroy Structure 34 | . 34 . Lose Combat Pursuer 60 | . 60 . Influence Decreases 466 | . 254 212 Entered New Map 103 | . . 103 Time Decay 343 | . 234 109 Lost Part 20 | . 20 . Squads Dispatched 2 | . 2 . Investigation 1 | . 1 . Extermination . | . . . Reinforcement 1 | . 1 . Assault . | . . . Garrison . | . . . Intercept . | . . . Searches Triggered . | . . . Construction Impeded . | . . . Haulers Reinforced . | . . . Active Scanning Responses . | . . . Cargo Convoy Interrupts . | . . . Stealth | -11 -10 -10 --------- Run | Yrd Mat Sub Distress Signals . | . . . Communications Jammed . | . . . Distress Signals . | . . . Times Spotted 26 | . 24 2 Peak Tracking Total 6 | . 6 . Tactical Retreats 5 | . 5 . Traps | -11 -10 -10 ------- Run | Yrd Mat Sub Traps Triggered 1 | . 1 . Indirectly . | . . . Trap Hack Attempts . | . . . Triggered . | . . . Disarmed . | . . . Reprogrammed . | . . . Reused . | . . . Traps Extracted . | . . . Installed . | . . . Triggered . | . . . Machines | -11 -10 -10 ---------- Run | Yrd Mat Sub Machines Disabled 1 | . 1 . Max in Single Turn 1 | . 1 . Machines Repaired . | . . . Machines Dismantled . | . . . Machines Sabotaged . | . . . Overloaded Fab Kills . | . . . Hacking | -11 -10 -10 --------- Run | Yrd Mat Sub Machines Accessed 2 | . 2 . Terminals 2 | . 2 . Fabricators . | . . . Repair Stations . | . . . Recycling Units . | . . . Scanalyzers . | . . . Garrison Access . | . . . Total Hacks 4 | . 4 . Successful 1 | . 1 . Failed 3 | . 3 . Catastrophic . | . . . Database Lockouts . | . . . Manual . | . . . Terminals 4 | . 4 . Fabricators . | . . . Repair Stations . | . . . Recycling Units . | . . . Scanalyzers . | . . . Garrison Access . | . . . Terminal Hacks 1 | . 1 . Zone Layout 1 | . 1 . Fabricator Hacks . | . . . Repair Station Hacks . | . . . Recycling Unit Hacks . | . . . Scanalyzer . | . . . Garrison Access Hacks . | . . . Unauthorized Hacks . | . . . Terminals . | . . . Fabricators . | . . . Repair Stations . | . . . Recycling Units . | . . . Scanalyzers . | . . . Garrison Access . | . . . Data Cores Recovered 1 | . 1 . Used . | . . . Hacking Detections 1 | . 1 . Full Trace Events . | . . . Feedback Events . | . . . Feedback Blocked . | . . . Robot Schematics Acquired . | . . . Robots Built . | . . . Authchips . | . . . Time . | . . . Total Robot Build Rating . | . . . Part Schematics Acquired . | . . . Parts Built . | . . . Authchips . | . . . Time . | . . . Total Part Build Rating . | . . . Part Studies Acquired . | . . . Parts Repaired . | . . . Time . | . . . Parts Recycled . | . . . Recycled Matter . | . . . Retrieved Matter . | . . . Retrieved Components . | . . . Parts Scanalyzed . | . . . Part Schematics Acquired . | . . . Parts Damaged . | . . . Bothacking | -11 -10 -10 ------------ Run | Yrd Mat Sub Used RIF Installer . | . . . Robots Hacked . | . . . Non-combat . | . . . Combat . | . . . Robot Hacks Applied . | . . . Relay Couplers Released . | . . . Fabnet Peak Effective % . | . . . Robots Rewired . | . . . Allies Hacked . | . . . Hacks Repelled . | . . . Allies | -11 -10 -10 -------- Run | Yrd Mat Sub Total Allies . | . . . Largest Group . | . . . Highest-Rated Group . | . . . Highest-Rated Ally . | . . . Total Orders . | . . . Ally Attacks . | . . . Total Damage . | . . . Kills . | . . . Allies Corrupted . | . . . Allies Melted . | . . . Intel | -11 -10 -10 ------- Run | Yrd Mat Sub Active Infowar (turns) . | . . . Robot Analysis Total . | . . . Derelict Logs Recovered 1 | . . 1 Drone Launches . | . . . Drone Recoveries . | . . . Exploration | -11 -10 -10 ------------- Run | Yrd Mat Sub Turns Passed 1892 | 61 804 1027 Spaces Moved 999 | 41 339 619 Core 5 | 5 . . Treads 746 | . 127 619 Legs 248 | 36 212 . Wheels . | . . . Hover . | . . . Flight . | . . . Fastest Speed 50 | 50 120 160 Average Speed 165 | 113 180 160 Slowest Speed 240 | 150 240 160 Overloaded Moves . | . . . Propulsion Burnouts . | . . . Robots Hopped . | . . . Potential Cave-ins . | . . . Cave-ins Triggered . | . . . Exploration Rate (%) 25 | 3 52 20 Regions Visited 2 Branch Regions 1 Pre-discovered Areas . | . . . Known Exits Taken 1 | . 1 . Unknown Exits Taken 1 | 1 . . Scrap Searched 1 | . . 1 Spaces Dug . | . . . Terrain Destroyed 43 | . 43 . Melee . | . . . Projectile . | . . . AOE 43 | . 43 . Terrain Rammed . | . . . Walls Destroyed . | . . . Machines Disabled . | . . . Actions | -11 -10 -10 --------- Run | Yrd Mat Sub Total 1163 | 52 473 638 Wait 67 | . 64 3 Move 997 | 40 338 619 Hop . | . . . Pick Up 20 | 6 12 2 Fast Attach 11 | 6 5 . Attach 2 | . . 2 Detach 2 | . 2 . Swap 5 | . 4 1 Drop 11 | . 10 1 Fire 41 | . 38 3 Melee 7 | . . 7 Ram . | . . . Kick . | . . . Crush . | . . . Escape Stasis . | . . . Rewire . | . . . Trap . | . . . Miscellaneous . | . . . Route ------- -11/Scrapyard -10/Materials (discovered 4 exits: *Mat x2 / [*Min] / *Sub) -10/Subcaves History --------- Turn | Location | Event 9 | -11/Scrapyard | Discovered new exit (range 15) 62 | -11/Scrapyard | Entered Materials 317 | -10/Materials | Build established: Mutant 352 | -10/Materials | Discovered new exit (range 11) 371 | -10/Materials | Identified exit to Materials 465 | -10/Materials | Discovered new exit (range 11) 481 | -10/Materials | Identified exit to Subcaves 534 | -10/Materials | Discovered new exit (range 7) 729 | -10/Materials | Discovered exit to Materials (range 14) 762 | -10/Materials | Derelicts attacked the area 827 | -10/Materials | Core integrity fell below 50% 827 | -10/Materials | Core integrity fell below 20% 866 | -10/Materials | Entered Subcaves 888 | -10/Subcaves | Learned Materials stockpile data 1043 | -10/Subcaves | Shifting Twisted Machinery released Shrapnel Trap 1643 | -10/Subcaves | Shifting Twisted Machinery released Battle Cannon 1802 | -10/Subcaves | Shifting Twisted Machinery released Flamer 1804 | -10/Subcaves | A swath of the cavern ceiling suddenly collapsed 1805 | -10/Subcaves | Shifting Twisted Machinery released Sub. Beam Cannon 1893 | -10/Subcaves | Destroyed by BO-C9V(R) with Subdweller Beam Cannon Last Messages --------------- JB-4GH(O) collects matter. Dropped Com. Wheel. Acquired Mak. Flight Unit. 6S-4EO(u) tweaks Twisted Machinery. Battle Cannon falls loose from the Twisted Machinery. Acquired 12 matter. Flamer falls loose from the Twisted Machinery. Flamer crushed. QM-AV8(h) crushed by falling debris. QM-AV8(h) system corrupted by crushing effect. A swath of the cavern ceiling suddenly collapses. QM-AV8(h) system terminally corrupted. Sub. Beam Cannon falls loose from the Twisted Machinery. OY-QON(z): "She is not going to be happy we haven't found any suitable candidates yet." RN-H1E(u) tweaks Twisted Machinery. RN-H1E(u) builds Twisted Machinery. Map ----- +----------------------------------------------------+ | ??????????????????#"#""""###?# ##?????????????? | | ?????????????????#"###"# ""#?## ##??????????????? | | ????????????????# "?""### "#??# #???????????????? | | ??????????????? ?"#### ##??####???????????????? | | ?????????????? ?"???#"" "####??????????????????? | | ?????????????" ????#"""""""#??????????????????? | | ????????????# " ??????##" """"#??????????????????? | | ???????????##" ??????###" """"##?????????????????? | | ???????????# ?????##"""" """ #?????????????????? | | ??????????### #???##""""" ###?????????????????? | | ??????????# #### """" #???????????????????? | | ?????????## "##??????????????????? | | ????????## " ""#??????????????????? | | ????????# """ ##??????????????????? | | ????????# " ###???????????????????? | | ????????# #### ##?????????????????????? | | ????????????????## #??????????????????????? | | ????????????????# ### #??????????????????????? | | ????????????????# #### ##??????""?????????????? | | ????????????????# #?? " #????? ""?????????????? | | ????????????????# #### "#???? ""?????????????? | | ????????????????# # ## #?? R """?????????????? | | ????????????????# ##? R "" ????????????? | | ????????????????# ## "" ?????????????? | | ????????????????###### #????????????????? | | ?????????????????????## @ ##????????????????? | | ??????????????????????## ###?????????????????? | | ???????????????????????# ##???????????????????? | | ???????????????????????## #????????????????????? | | ????????????????????????## #????????????????????? | | ??????????????????????????# #????????????????????? | | ???????????????????????????##????????????????????? | | ?????????????????????????????????????????????????? | | ?????????????????????????????????????????????????? | | ?????????????????????????????????????????????????? | | ?????????????????????????????????????????????????? | | ?????????????????????????????????????????????????? | | ?????????????????????????????????????????????????? | | ?????????????????????????????????????????????????? | | ?????????????????????????????????????????????????? | | ?????????????????????????????????????????????????? | | ?????????????????????????????????????????????????? | | ?????????????????????????????????????????????????? | | ?????????????????????????????????????????????????? | | ?????????????????????????????????????????????????? | | ?????????????????????????????????????????????????? | | ?????????????????????????????????????????????????? | | ?????????????????????????????????????????????????? | | ?????????????????????????????????????????????????? | | ?????????????????????????????????????????????????? | +----------------------------------------------------+ Best States ------------- Heat Dissipation 25 Energy Generation 10 Energy Capacity 125 Matter Stores 300 Matter Capacity 300 Sight Range 16 Terrain Scan Density 10 Evasion (%) 55 Recoil Reduction 2 Item Schematics ----------------- None Robot Schematics ------------------ None Fabricated ------------ Nothing Repaired ---------- Nothing Studied --------- None Alien Tech Used ----------------- None Achievements -------------- None Challenges ------------ None Game ------ Seed SegregatorShockCycler Manual? 0 Play Time 00:23:33 Cumulative 30.7 hours Start 2025.12.18 @ 03:26:11 End 2025.12.18 @ 03:48:21 Sessions 1 Manual Loads 0 Difficulty Rogue Special Mode None Game No. 36 Rogue 36 Adventurer 0 Explorer 0 Win Type - Total 0 Types 0/0/0/0/0/0/0/0/0/0 Lore% 14 Gallery% 21 Achievement% 19 Wizard Run 0 Options --------- Layout 1 ASCII 0 Keyboard 0 Movement Vi Keybinds 0 Fullscreen 1 Font 16/SmallcapsGlow Map View 50x40 Zoom Use 36% Tactical HUD 0 Map Filters NONE Filters NONE Steam SD RUN: ef6eb71d-cd6d-4dc1-8984-3b497aa40d2b